bitfinex/quotes_SOLUSD_20250901
["timestamp","ask_amount","ask_price","bid_price","bid_amount"]
[1756768221056,3.41544134,196.15,196.13,13.71559401]
[1756768221252,3.41544134,196.16,196.13,13.71559401]
[1756768221453,3.41544134,196.16,196.14,0.68]
[1756768221651,3.41544134,196.16,196.15,14.27559401]
[1756768221859,0.03,196.18,196.16,13.59559401]
[1756768222063,3.46214125,196.18,196.16,14.27559401]
[1756768222374,0.03,196.18,196.17,0.68]
[1756768222560,3.46214125,196.18,196.17,0.68]
[1756768222761,0.03,196.18,196.17,14.27559401]
[1756768222933,3.46214125,196.18,196.17,14.27559401]
[1756768223138,0.03,196.18,196.17,14.27559401]
[1756768224868,0.03,196.18,196.17,19.37321342]
[1756768225153,0.03,196.18,196.17,18.02501578]
[1756768225345,0.03,196.18,196.17,19.37321342]
[1756768226161,0.03,196.18,196.17,23.12263519]
[1756768226741,1e-08,196.18,196.17,23.12263519]
[1756768226943,1e-08,196.18,196.17,63.42263519]
[1756768229169,1e-08,196.18,196.17,122.42263519]
[1756768229668,1e-08,196.18,196.17,122.40263519]
[1756768232171,1e-08,196.18,196.17,82.12263519]
[1756768232363,1e-08,196.18,196.17,122.91239713]
[1756768232555,1e-08,196.18,196.17,122.40263519]
[1756768235351,1e-08,196.18,196.17,63.40263519]
[1756768235550,1e-08,196.18,196.17,63.91239713]
[1756768237280,1e-08,196.18,196.17,60.16297536]
[1756768237482,1e-08,196.18,196.17,63.91239713]
[1756768238491,1e-08,196.18,196.17,122.91239713]
[1756768238658,1e-08,196.18,196.17,122.40263519]
[1756768238985,0.03,196.22,196.17,126.15205696]
[1756768239155,4.36750609,196.39,196.32,35.33]
[1756768239357,5.73741188,196.43,196.42,20.0]
[1756768239358,0.03,196.43,196.42,20.0]
[1756768239658,0.03,196.46,196.45,39.59559401]
[1756768239883,0.03,196.46,196.45,43.85405115]
[1756768240180,0.00468984,196.46,196.45,85.79405115]
[1756768240362,0.00468984,196.46,196.45,85.05405115]
[1756768240763,0.72,196.51,196.46,13.59559401]
[1756768240968,0.72,196.51,196.45,85.77405115]
[1756768240969,0.72,196.51,196.49,17.34501578]
[1756768241273,26.0,196.6,196.49,13.59559401]
[1756768241586,0.72,196.52,196.49,58.54501578]
[1756768241972,0.72,196.52,196.49,60.76918193]
[1756768242168,0.72,196.52,196.49,119.76918193]
[1756768243280,0.72,196.52,196.49,72.59559401]
[1756768243491,5.08814931,196.54,196.49,119.74918193]
[1756768243667,0.75,196.5,196.49,119.74918193]
[1756768243874,0.03,196.5,196.49,119.74918193]
[1756768244668,0.03,196.5,196.49,119.70918193]
[1756768244901,0.03,196.5,196.49,119.68918193]
[1756768246068,0.75,196.5,196.49,113.71559401]
[1756768246263,0.03,196.5,196.49,72.59559401]
[1756768246591,0.03,196.5,196.49,13.59559401]
[1756768246592,0.75,196.5,196.49,13.59559401]
[1756768246967,0.75,196.5,196.49,54.67559401]
[1756768247792,5.83905852,196.5,196.49,54.67559401]
[1756768248603,5.83905852,196.5,196.49,41.04]
[1756768249018,18.56170483,196.5,196.49,41.04]
[1756768249583,5.83905852,196.5,196.49,41.04]
[1756768250097,18.56170483,196.5,196.44,13.59559401]
[1756768250309,0.72,196.49,196.46,13.59559401]
[1756768250495,5.11905852,196.5,196.48,13.59559401]
[1756768250687,5.11905852,196.5,196.49,54.59559401]
[1756768251390,5.83905852,196.5,196.49,54.59559401]
[1756768252919,0.03,196.5,196.49,61.28918193]
[1756768253225,0.03,196.5,196.49,60.56918193]
[1756768254188,5.83905852,196.5,196.49,13.59559401]
[1756768254388,5.83905852,196.5,196.49,54.57559401]
[1756768255714,5.83905852,196.5,196.49,13.59559401]
[1756768255913,5.83905852,196.5,196.49,54.51559401]
[1756768256233,5.83905852,196.5,196.49,13.59559401]
[1756768256734,5.83905852,196.5,196.49,54.51559401]
[1756768256930,5.83905852,196.5,196.49,13.59559401]
[1756768257137,5.83905852,196.5,196.49,54.51559401]
[1756768257910,18.56170483,196.5,196.45,59.0]
[1756768258214,18.56170483,196.5,196.42,0.72]
[1756768258215,0.72,196.49,196.46,54.49559401]
[1756768258412,5.08957654,196.48,196.47,54.49559401]
[1756768258618,5.80957654,196.48,196.47,54.49559401]
[1756768258845,5.80957654,196.48,196.47,13.59559401]
[1756768259049,0.03,196.5,196.47,54.49559401]
[1756768259338,0.03,196.5,196.49,19.56918193]
[1756768259643,0.03,196.5,196.49,54.47559401]
[1756768259957,0.03,196.5,196.49,60.44918193]
[1756768260444,0.03,196.5,196.49,61.16918193]
[1756768260643,0.03,196.5,196.49,60.52918193]
[1756768261247,0.03,196.5,196.49,72.59559401]
[1756768261538,0.75,196.5,196.49,13.59559401]
[1756768261742,0.03,196.5,196.49,54.53559401]
[1756768262917,0.03,196.5,196.49,13.59559401]
[1756768263134,0.03,196.5,196.49,54.53559401]
[1756768264131,0.03,196.5,196.49,54.51559401]
[1756768265340,0.72,196.5,196.49,13.59559401]
[1756768265515,0.72,196.5,196.49,40.9]
[1756768266018,0.72,196.5,196.44,13.59559401]
[1756768266209,0.69,196.49,196.46,13.59559401]
[1756768266416,0.69,196.48,196.47,54.49559401]
[1756768266613,0.72,196.5,196.47,40.9]
[1756768266848,0.03,196.5,196.47,40.9]
[1756768267155,5.08957654,196.48,196.47,54.49559401]
[1756768268320,5.08957654,196.48,196.47,13.59559401]
[1756768268513,5.08957654,196.48,196.47,54.47559401]
[1756768270625,5.08957654,196.48,196.47,54.41559401]
[1756768270828,5.08931752,196.49,196.47,54.41559401]
[1756768271011,5.77931752,196.49,196.47,54.41559401]
[1756768271528,5.77931752,196.49,196.47,13.59559401]
[1756768271732,5.77931752,196.49,196.48,40.82]
[1756768272339,5.08931752,196.49,196.48,40.82]
[1756768272838,5.77931752,196.49,196.48,40.82]
[1756768273640,5.77931752,196.49,196.48,40.76]
[1756768274312,5.08931752,196.49,196.48,40.76]
[1756768275339,0.03,196.5,196.48,40.76]
[1756768275734,0.72,196.5,196.49,40.74]
[1756768277149,5.80905852,196.5,196.49,40.74]
[1756768277623,5.80905852,196.5,196.47,13.59559401]
[1756768277824,5.11905852,196.5,196.47,13.59559401]
[1756768278041,26.0,196.46,196.35,0.72]
[1756768278333,26.0,196.46,196.36,3.71922331]
[1756768278334,0.69,196.45,196.36,3.71922331]
[1756768278542,0.69,196.44,196.37,3.71922331]
[1756768278728,26.0,196.46,196.38,3.71922331]
[1756768278729,0.69,196.43,196.38,3.71922331]
[1756768278925,0.69,196.42,196.33,13.59559401]
[1756768279141,0.69,196.41,196.34,44.56169754]
[1756768279326,0.69,196.4,196.35,3.72169754]
[1756768279537,0.69,196.39,196.36,44.56169754]
[1756768279714,0.69,196.39,196.37,3.72169754]
[1756768279914,26.0,196.42,196.38,18.68939246]
[1756768280131,26.0,196.42,196.37,40.82]
[1756768280342,26.0,196.42,196.33,40.82]
[1756768280524,26.0,196.4,196.33,40.82]
[1756768280722,0.69,196.39,196.33,40.82]
[1756768280920,0.69,196.38,196.33,40.82]
[1756768281246,0.69,196.37,196.33,40.82]
[1756768281421,0.69,196.36,196.33,40.82]
[1756768281619,0.69,196.36,196.33,40.84]
[1756768281944,0.69,196.35,196.3,72.59559401]
[1756768282116,26.0,196.36,196.31,40.84]
[1756768282117,0.69,196.34,196.31,40.84]
[1756768282319,4.76323914,196.34,196.28,54.45559401]
[1756768282519,0.69,196.33,196.28,54.45559401]
[1756768282720,0.69,196.32,196.28,54.45559401]
[1756768282938,0.69,196.31,196.28,54.45559401]
[1756768283145,5.7842435,196.3,196.27,40.88]
[1756768283637,18.51985226,196.3,196.26,13.59559401]
[1756768283834,0.69,196.29,196.22,0.72]
[1756768284041,0.69,196.29,196.23,54.45559401]
[1756768284819,0.69,196.29,196.25,13.59559401]
[1756768285232,5.78476258,196.28,196.25,72.59559401]
[1756768285436,5.09476258,196.28,196.25,72.59559401]
[1756768285617,5.09476258,196.28,196.26,0.72]
[1756768286023,5.09476258,196.28,196.25,72.59559401]
[1756768286232,5.09476258,196.28,196.25,73.31559401]
[1756768287344,17.8307606,196.29,196.25,73.31559401]
[1756768287540,18.5207606,196.29,196.25,73.31559401]
[1756768287848,17.8307606,196.29,196.25,73.31559401]
[1756768288250,17.8307606,196.29,196.24,40.86]
[1756768288449,0.69,196.28,196.23,54.41559401]
[1756768288640,0.69,196.27,196.23,54.41559401]
[1756768288956,5.09450303,196.29,196.24,0.72]
[1756768289155,5.09450303,196.29,196.25,0.72]
[1756768289360,5.09450303,196.29,196.26,0.72]
[1756768290342,18.5207606,196.29,196.24,40.8]
[1756768290538,18.5207606,196.29,196.24,41.52]
[1756768291346,18.5207606,196.29,196.24,100.52]
[1756768292482,18.5207606,196.29,196.25,0.72]
[1756768294269,17.8307606,196.29,196.26,0.72]
[1756768294470,17.8307606,196.29,196.24,99.8]
[1756768294641,18.5207606,196.29,196.25,0.72]
[1756768294847,18.5207606,196.29,196.25,41.48]
[1756768295270,17.8307606,196.29,196.25,41.48]
[1756768296173,17.8307606,196.29,196.26,0.7]
[1756768296367,17.8307606,196.29,196.25,40.76]
[1756768296541,17.8307606,196.29,196.25,41.46]
[1756768296966,17.8307606,196.29,196.25,40.76]
[1756768297152,5.09450303,196.29,196.26,0.7]
[1756768297353,5.09450303,196.29,196.27,0.7]
[1756768297534,12.73436423,196.32,196.25,40.76]
[1756768297535,5.09420887,196.31,196.28,0.7]
[1756768297735,5.09420887,196.31,196.29,0.7]
[1756768298670,12.73403884,196.33,196.28,40.68]
[1756768298874,10.90668693,196.67,196.28,40.68]
[1756768298875,5.09139045,196.41,196.33,13.59559401]
[1756768299169,45.15296974,196.56,196.33,13.59559401]
[1756768299170,12.72766027,196.43,196.39,13.59559401]
[1756768299371,5.0906129,196.44,196.41,13.59559401]
[1756768299958,5.8006129,196.44,196.41,13.59559401]
[1756768300545,5.0906129,196.44,196.42,6.68602417]
[1756768300875,5.0906129,196.44,196.43,41.06]
[1756768301071,17.8135179,196.48,196.43,41.76]
[1756768301442,26.0,196.47,196.43,41.76]
[1756768302167,18.5235179,196.48,196.43,41.76]
[1756768302545,26.0,196.47,196.43,41.76]
[1756768302757,5.09009467,196.46,196.43,41.76]
[1756768306349,17.81533135,196.46,196.44,40.96]
[1756768306553,18.52533135,196.46,196.44,40.96]
[1756768307369,17.81533135,196.46,196.44,40.96]
[1756768307874,17.81533135,196.46,196.44,41.66]
[1756768308071,5.09009467,196.46,196.44,40.96]
[1756768308263,5.09009467,196.46,196.45,41.64]
[1756768308776,5.08977959,196.48,196.46,13.59559401]
[1756768308972,5.08977959,196.48,196.47,0.7]
[1756768309281,0.03,196.49,196.47,41.62]
[1756768309858,0.03,196.49,196.47,40.92]
[1756768310063,0.03,196.49,196.48,40.9]
[1756768311349,0.74,196.49,196.42,13.59559401]
[1756768311547,0.71,196.48,196.42,13.59559401]
[1756768311755,0.71,196.47,196.43,40.86]
[1756768312272,0.03,196.49,196.43,40.86]
[1756768312455,0.71,196.48,196.4,0.7]
[1756768312658,0.71,196.48,196.41,38.97559401]
[1756768312889,0.03,196.49,196.41,38.97559401]
[1756768312890,0.71,196.47,196.41,38.97559401]
[1756768313058,0.71,196.47,196.42,40.86]
[1756768313374,18.52533135,196.46,196.41,13.59559401]
[1756768313577,26.71,196.45,196.4,40.84]
[1756768313783,0.71,196.44,196.41,13.59559401]
[1756768314156,0.71,196.44,196.38,0.7]
[1756768314474,0.71,196.44,196.4,13.59559401]
[1756768314773,0.71,196.43,196.4,54.43559401]
[1756768315657,5.09113124,196.42,196.38,0.7]
[1756768315861,18.52895936,196.42,196.39,40.84]
[1756768316377,17.81895936,196.42,196.39,41.54]
[1756768316552,18.52895936,196.42,196.39,40.82]
[1756768317157,18.52895936,196.42,196.38,54.41559401]
[1756768317463,18.52895936,196.42,196.38,55.11559401]
[1756768317660,17.81895936,196.42,196.38,14.29559401]
[1756768317981,17.81895936,196.42,196.39,41.52]
[1756768319379,12.72782812,196.42,196.39,41.52]
[1756768319956,12.72782812,196.42,196.39,40.82]
[1756768320156,5.09087206,196.43,196.39,40.82]
[1756768320358,5.80087206,196.43,196.39,40.82]
[1756768320800,0.03,196.46,196.42,19.57319035]
[1756768321088,5.12018745,196.46,196.44,13.59559401]
[1756768321269,5.12018745,196.46,196.44,14.29559401]
[1756768321270,0.03,196.46,196.44,14.29559401]
[1756768321874,0.03,196.46,196.45,0.7]
[1756768322074,0.03,196.46,196.45,14.29559401]
[1756768322264,0.03,196.46,196.45,55.27559401]
[1756768324255,0.03,196.46,196.45,14.29559401]
[1756768324459,0.03,196.46,196.45,55.23559401]
[1756768324765,0.03,196.46,196.45,66.81257949]
[1756768325359,0.03,196.46,196.45,87.19315424]
[1756768325597,0.03,196.48,196.47,13.59559401]
[1756768325883,0.03,196.48,196.47,61.2421739]
[1756768326086,0.03,196.48,196.47,61.9521739]
[1756768326291,0.03,196.48,196.47,20.7921739]
[1756768326503,0.03,196.48,196.47,120.9721739]
[1756768326790,0.03,196.49,196.48,13.59559401]
[1756768326993,0.03,196.5,196.48,20.28319035]
[1756768327160,0.03,196.5,196.49,61.9521221]
[1756768327357,0.03,196.5,196.49,81.9521221]
[1756768328785,0.03,196.5,196.49,87.04143962]
[1756768328987,0.1,196.66,196.52,71.55078669]
[1756768329170,0.1,196.66,196.64,13.59559401]
[1756768329371,0.1,196.66,196.65,55.05559401]
[1756768329372,5.18516399,196.66,196.65,55.05559401]
[1756768329972,5.85516399,196.66,196.65,55.05559401]
[1756768330270,5.85516399,196.66,196.65,114.05559401]
[1756768330984,5.18516399,196.66,196.65,114.05559401]
[1756768332175,5.85516399,196.66,196.65,59.0]
[1756768332376,18.56745932,196.66,196.64,41.38]
[1756768332599,5.08543531,196.64,196.63,41.38]
[1756768332895,5.75543531,196.64,196.63,41.38]
[1756768333790,26.0,196.61,196.56,13.59559401]
[1756768333999,32.52258576,196.6,196.47,51.971689]
[1756768334173,0.67,196.59,196.49,0.71]
[1756768334492,5.08698748,196.58,196.5,13.59559401]
[1756768334677,5.08698748,196.58,196.52,13.59559401]
[1756768334993,0.67,196.57,196.54,13.59559401]
[1756768335399,17.80445619,196.58,196.54,13.59559401]
[1756768335693,0.67,196.56,196.54,13.59559401]
[1756768336674,5.08776392,196.55,196.54,13.59559401]
[1756768336874,5.75776392,196.55,196.54,13.59559401]
[1756768337176,18.47717373,196.55,196.48,13.59559401]
[1756768337386,0.67,196.54,196.49,41.38]
[1756768337981,17.80717373,196.55,196.5,14.30559401]
[1756768338182,5.08776392,196.55,196.52,13.59559401]
[1756768338395,5.08776392,196.55,196.54,13.59559401]
[1756768338902,5.08698748,196.58,196.54,13.59559401]
[1756768339096,5.75698748,196.58,196.54,13.59559401]
[1756768339795,12.71545624,196.62,196.56,13.59559401]
[1756768339796,5.75595259,196.62,196.56,13.59559401]
[1756768339993,5.75595259,196.62,196.56,113.95559401]
[1756768340174,5.08595259,196.62,196.56,113.95559401]
[1756768340376,5.08595259,196.62,196.58,13.59559401]
[1756768340576,5.08595259,196.62,196.59,42.07]
[1756768340875,17.79966834,196.64,196.59,41.36]
[1756768341075,17.79966834,196.64,196.6,13.59559401]
[1756768341076,0.67,196.63,196.6,13.59559401]
[1756768341272,0.67,196.63,196.6,54.95559401]
[1756768341675,0.67,196.62,196.6,54.95559401]
[1756768341875,5.08543531,196.64,196.58,41.36]
[1756768341876,0.67,196.61,196.58,41.36]
[1756768342073,17.79902359,196.64,196.59,13.59559401]
[1756768342277,0.67,196.61,196.59,13.59559401]
[1756768342690,5.75543531,196.64,196.59,13.59559401]
[1756768342898,0.67,196.63,196.59,13.59559401]
[1756768343085,0.67,196.62,196.59,13.59559401]
[1756768343880,17.79902359,196.64,196.59,13.59559401]
[1756768344082,0.67,196.63,196.59,13.59559401]
[1756768344303,0.67,196.62,196.59,13.59559401]
[1756768344602,0.67,196.61,196.59,13.59559401]
[1756768344813,0.67,196.6,196.59,13.59559401]
[1756768344991,5.08672872,196.59,196.53,0.71]
[1756768345182,17.80355053,196.59,196.54,54.89559401]
[1756768345388,26.0,196.56,196.46,0.71]
[1756768345608,0.67,196.55,196.5,13.59559401]
[1756768345783,0.67,196.54,196.5,13.59559401]
[1756768345983,0.67,196.54,196.49,13.59559401]
[1756768346285,0.67,196.54,196.49,14.30559401]
[1756768347106,17.80898589,196.53,196.49,14.30559401]
[1756768347984,0.67,196.52,196.48,59.0]
[1756768348218,0.67,196.52,196.49,13.59559401]
[1756768348394,0.67,196.51,196.47,13.59559401]
[1756768348586,0.67,196.5,196.47,13.59559401]
[1756768349315,5.08931752,196.49,196.47,13.59559401]
[1756768349519,0.67,196.48,196.42,0.71]
[1756768349699,0.67,196.48,196.44,13.59559401]
[1756768351202,5.08983559,196.47,196.44,13.59559401]
[1756768351402,5.08983559,196.47,196.44,72.59559401]
[1756768351606,5.08983559,196.47,196.44,73.30559401]
[1756768352616,5.08983559,196.47,196.44,73.42559401]
[1756768353214,17.81261132,196.49,196.44,73.42559401]
[1756768353402,18.48261132,196.49,196.44,73.42559401]
[1756768354424,17.81261132,196.49,196.44,72.71559401]
[1756768354614,0.67,196.48,196.44,13.71559401]
[1756768354911,0.67,196.47,196.44,13.71559401]
[1756768355288,5.09009467,196.46,196.44,13.71559401]
[1756768355697,5.09009467,196.46,196.44,0.12]
[1756768355892,5.79009467,196.46,196.44,0.12]
[1756768356913,5.09009467,196.46,196.45,14.31559401]
[1756768357619,17.81261132,196.49,196.46,13.59559401]
[1756768357818,5.08931752,196.49,196.48,13.59559401]
[1756768358012,5.08931752,196.49,196.48,14.31559401]
[1756768358496,5.08931752,196.49,196.48,13.59559401]
[1756768359103,5.08931752,196.49,196.48,14.31559401]
[1756768359412,5.08879955,196.51,196.48,14.31559401]
[1756768359620,5.08879955,196.51,196.49,0.72]
[1756768359820,5.08879955,196.51,196.48,13.59559401]
[1756768361096,5.08879955,196.51,196.45,59.0]
[1756768361301,0.7,196.5,196.46,13.59559401]
[1756768361830,26.0,196.5,196.46,13.59559401]
[1756768362016,26.7,196.5,196.46,13.59559401]
[1756768362217,26.0,196.5,196.46,14.31559401]
[1756768362420,26.7,196.5,196.46,13.59559401]
[1756768363130,5.08931752,196.49,196.46,13.59559401]
[1756768363833,0.7,196.48,196.44,0.12]
[1756768364003,0.7,196.47,196.44,0.12]
[1756768364203,0.7,196.46,196.44,0.12]
[1756768364510,26.0,196.44,196.42,0.12]
[1756768364911,26.0,196.47,196.43,0.72]
[1756768365106,5.09009467,196.46,196.43,0.72]
[1756768366122,5.09009467,196.46,196.44,14.31559401]
[1756768366326,5.09009467,196.46,196.45,14.31559401]
[1756768366906,5.09009467,196.46,196.45,73.31559401]
[1756768367729,17.81194997,196.5,196.45,73.31559401]
[1756768367931,17.81194997,196.5,196.46,0.72]
[1756768368133,17.81194997,196.5,196.47,13.59559401]
[1756768368629,17.81194997,196.5,196.47,14.31559401]
[1756768370145,17.81194997,196.5,196.47,13.59559401]
[1756768370350,5.08905852,196.5,196.49,13.59559401]
[1756768370515,5.08905852,196.5,196.49,14.31559401]
[1756768371820,17.83924959,196.53,196.49,14.31559401]
[1756768373320,5.11828168,196.53,196.49,14.31559401]
[1756768373625,5.11828168,196.53,196.5,0.72]
[1756768373822,5.11828168,196.53,196.49,13.59559401]
[1756768374041,5.11828168,196.53,196.51,13.59559401]
[1756768374540,5.81828168,196.53,196.51,13.59559401]
[1756768375426,5.11828168,196.53,196.51,13.59559401]
[1756768376432,5.81828168,196.53,196.51,13.59559401]
[1756768377327,5.11828168,196.53,196.51,13.59559401]
[1756768377644,5.11828168,196.53,196.51,14.31559401]
[1756768377948,5.11828168,196.53,196.51,13.59559401]
[1756768379548,0.03,196.53,196.51,13.59559401]
[1756768380339,0.03,196.53,196.5,13.59559401]
[1756768380652,0.7,196.52,196.5,13.59559401]
[1756768380864,0.03,196.53,196.5,13.59559401]
[1756768381043,0.03,196.53,196.51,0.72]
[1756768381240,0.03,196.53,196.52,54.49559401]
[1756768381424,0.03,196.53,196.52,55.21559401]
[1756768383341,0.03,196.53,196.52,114.21559401]
[1756768384254,0.03,196.53,196.52,114.19559401]
[1756768386665,0.03,196.53,196.52,113.43559401]
[1756768386961,0.74,196.53,196.52,54.43559401]
[1756768387160,0.03,196.53,196.52,54.43559401]
[1756768387933,0.03,196.53,196.52,55.14559401]
[1756768388136,0.03,196.53,196.52,54.43559401]
[1756768389262,0.03,196.53,196.52,13.59559401]
[1756768389263,0.74,196.53,196.52,13.59559401]
[1756768389559,26.74,196.53,196.49,40.8]
[1756768389756,0.71,196.52,196.49,40.8]
[1756768390343,5.08879955,196.51,196.49,40.8]
[1756768391342,0.03,196.53,196.5,13.59559401]
[1756768391559,0.03,196.53,196.52,17.32960683]
[1756768391860,0.03,196.55,196.54,39.59559401]
[1756768392067,0.03,196.55,196.54,84.7384091]
[1756768392238,0.03,196.55,196.54,44.5484091]
[1756768392439,0.03,196.55,196.54,49.63643189]
[1756768392646,0.03,196.55,196.54,90.55643189]
[1756768394062,0.03,196.55,196.54,92.79281747]
[1756768394266,0.03,196.55,196.54,87.70479468]
[1756768394563,0.03,196.55,196.54,72.59559401]
[1756768394790,0.74,196.55,196.54,54.49559401]
[1756768395149,0.03,196.55,196.54,54.49559401]
[1756768397771,0.03,196.55,196.54,113.49559401]
[1756768399557,0.03,196.55,196.54,114.20559401]
[1756768402271,0.03,196.55,196.54,113.49559401]
[1756768402663,0.03,196.55,196.54,120.17599241]
[1756768402859,0.03,196.55,196.54,114.20559401]
[1756768403458,0.03,196.55,196.54,113.39559401]
[1756768403864,0.03,196.55,196.54,114.10559401]
[1756768404172,0.03,196.55,196.54,119.1936168]
[1756768406162,0.03,196.55,196.54,125.1640152]
[1756768409480,0.03,196.55,196.54,72.59559401]
[1756768409779,0.03,196.55,196.54,113.31559401]
[1756768410368,0.03,196.55,196.54,125.0840152]
[1756768410763,1e-08,196.55,196.54,66.0840152]
[1756768410967,0.03,196.57,196.55,13.59559401]
[1756768411177,0.03,196.57,196.56,71.83264639]
[1756768411382,0.1,196.66,196.57,13.59559401]
[1756768411596,0.1,196.66,196.65,13.59559401]
[1756768411762,0.1,196.66,196.65,54.43559401]
[1756768412081,0.1,196.66,196.65,61.11599241]
[1756768412288,0.1,196.66,196.65,55.14559401]
[1756768412488,0.1,196.66,196.65,61.62451008]
[1756768413262,0.1,196.66,196.65,60.73928838]
[1756768413464,0.1,196.66,196.65,66.70968678]
[1756768413769,0.1,196.66,196.65,125.70968678]
[1756768414102,0.1,196.66,196.65,125.20116911]
[1756768414593,0.1,196.66,196.65,128.92125759]
[1756768416188,0.1,196.75,196.67,39.59559401]
[1756768416399,0.1,196.75,196.71,39.59559401]
[1756768416602,0.1,196.75,196.74,19.56599241]
[1756768416889,0.1,196.75,196.74,60.62599241]
[1756768417472,0.26145466,196.78,196.75,13.59559401]
[1756768417684,5.08105779,196.81,196.74,14.10387905]
[1756768417991,5.56302533,196.79,196.76,13.59559401]
[1756768418204,0.48145466,196.79,196.76,54.65559401]
[1756768418566,0.48145466,196.79,196.78,13.59559401]
[1756768418878,5.56303734,196.79,196.77,41.26]
[1756768419077,5.56303734,196.79,196.76,13.59559401]
[1756768419390,0.68,196.78,196.72,59.0]
[1756768419564,0.68,196.77,196.73,13.59559401]
[1756768419772,0.68,196.76,196.73,13.59559401]
[1756768419965,0.68,196.75,196.73,13.59559401]
[1756768420187,0.68,196.74,196.71,13.59559401]
[1756768420384,0.68,196.73,196.71,13.59559401]
[1756768420778,0.68,196.75,196.71,13.59559401]
[1756768420974,0.48145466,196.79,196.75,13.59559401]
[1756768421188,0.68,196.78,196.75,54.87559401]
[1756768421494,0.68,196.77,196.75,54.87559401]
[1756768421682,0.48145466,196.79,196.75,54.87559401]
[1756768421887,1.16145466,196.79,196.75,60.84599241]
[1756768422191,0.48145466,196.79,196.75,61.51599241]
[1756768422497,5.56303843,196.79,196.75,113.87559401]
[1756768422674,6.24303843,196.79,196.75,113.87559401]
[1756768423185,5.56303843,196.79,196.75,113.87559401]
[1756768423497,0.48145466,196.79,196.77,19.56599241]
[1756768423674,0.48145466,196.79,196.78,55.11559401]
[1756768424779,0.48145466,196.79,196.78,61.75599241]
[1756768425076,0.48145466,196.79,196.78,55.78559401]
[1756768425288,0.48145466,196.79,196.78,61.75599241]
[1756768426897,0.48145466,196.79,196.78,13.59559401]
[1756768427094,0.48145466,196.79,196.78,55.07559401]
[1756768427272,1.16145466,196.79,196.78,55.07559401]
[1756768427766,6.24301368,196.79,196.78,55.07559401]
[1756768427971,6.24301368,196.79,196.72,13.59559401]
[1756768428174,0.48145466,196.79,196.74,19.56599241]
[1756768428490,0.48145466,196.79,196.76,13.59559401]
[1756768428680,1.16145466,196.79,196.78,13.59559401]
[1756768428994,0.68,196.78,196.74,41.42]
[1756768429181,0.68,196.77,196.74,41.42]
[1756768429381,5.08259212,196.75,196.74,55.01559401]
[1756768429584,5.76259212,196.75,196.74,55.01559401]
[1756768429766,5.76259212,196.75,196.72,13.59559401]
[1756768429972,0.68,196.74,196.72,55.03559401]
[1756768430290,0.68,196.73,196.72,55.03559401]
[1756768430485,0.68,196.73,196.72,13.59559401]
[1756768430692,0.68,196.73,196.71,13.59559401]
[1756768431398,5.76336722,196.72,196.71,13.59559401]
[1756768431602,5.76336722,196.72,196.66,0.67]
[1756768431898,5.76336722,196.72,196.68,13.59559401]
[1756768432073,0.68,196.71,196.7,13.59559401]
[1756768432469,26.68,196.74,196.7,13.59559401]
[1756768432680,0.68,196.73,196.7,13.59559401]
[1756768433296,26.0,196.74,196.7,13.59559401]
[1756768433476,5.08247758,196.76,196.7,13.59559401]
[1756768433670,0.68,196.74,196.7,13.59559401]
[1756768434307,0.68,196.76,196.7,14.26559401]
[1756768434815,0.68,196.76,196.72,13.59559401]
[1756768435174,0.68,196.75,196.72,13.59559401]
[1756768435695,5.08247809,196.76,196.72,13.59559401]
[1756768435906,0.68,196.75,196.72,13.59559401]
[1756768436277,0.68,196.74,196.72,13.59559401]
[1756768437292,0.68,196.73,196.72,13.59559401]
[1756768437875,5.76310882,196.73,196.61,13.05584894]
[1756768438080,0.68,196.72,196.66,13.59559401]
[1756768438289,0.68,196.72,196.67,41.3]
[1756768438606,0.68,196.72,196.67,41.97]
[1756768438782,5.08310882,196.73,196.68,13.59559401]